[Event "EYTCC U12 Open 2019"]
[Site "Pardubice"]
[Date "2019.07.12"]
[Round "2.18"]
[White "Celik, Hasan Huseyin"]
[Black "Skrbec, Leon"]
[Result "1/2-1/2"]
[ECO "B06"]
[WhiteElo "1903"]
[BlackElo "1896"]
[Annotator "NA"]
[PlyCount "140"]
[EventDate "2019.07.11"]
[EventType "swiss"]
[EventCountry "CZE"]
[SourceTitle "playchess.com"]
[Source "ChessBase"]
[SourceQuality "1"]
[WhiteTeam "Turkey"]
[BlackTeam "Slovenia"]
[WhiteTeamCountry "TUR"]
[BlackTeamCountry "SLO"]
[TimeControl "40/5400+30:1800+30"]

1. e4 {[%emt 0:00:00]} g6 {[%emt 0:00:00]} 2. d4 {[%emt 0:00:03]} Bg7 {[%emt 0:00:00]} 3. Nc3 {[%emt 0:00:15]} c6 {[%emt 0:00:10]} 4. Nf3 {[%emt 0:00:56]} d6 {[%emt 0:00:30]} 5. Be3 {[%emt 0:02:24]} Nf6 {[%emt 0:00:26]} 6. h3 {[%emt 0:03:33]} b5 {[%emt 0:03:59]} 7. a3 {[%emt 0:01:09]} O-O {[%emt 0:00:09]} 8. Be2 {[%emt 0:00:39]} Nbd7 {[%emt 0:00:40]} 9. O-O {[%emt 0:00:17]} Qc7 {[%emt 0:04:58]} 10. Qd2 {[%emt 0:02:14]} e5 {[%emt 0:01:25]} 11. Rfd1 {[%emt 0:00:52]} Bb7 {[%emt 0:10:03]} 12. dxe5 {[%emt 0:04:07]} dxe5 {[%emt 0:00:06]} 13. Qd6 {[%emt 0:00:52]} Qxd6 {[%emt 0:00:16]} 14. Rxd6 {[%emt 0:00:01]} Rfe8 {[%emt 0:00:51]} 15. Rad1 {[%emt 0:01:23]} Nb6 {[%emt 0:00:44]} 16. Nh2 {[%emt 0:02:50]} h5 {[%emt 0:03:53]} 17. Nf3 {[%emt 0:03:39]} Nh7 {[%emt 0:03:46]} 18. Ng5 {[%emt 0:24:52]} Nxg5 {[%emt 0:04:28]} 19. Bxg5 {[%emt 0:00:02]} Bf8 {[%emt 0:00:11]} 20. R6d2 {[%emt 0:00:45]} Kg7 {[%emt 0:08:05]} 21. Kf1 {[%emt 0:01:20]} Bc8 {[%emt 0:05:01]} 22. Nb1 {[%emt 0:15:49]} Be6 {[%emt 0:00:50]} 23. b3 {[%emt 0:00:54]} Bc5 {[%emt 0:02:33]} 24. Be3 {[%emt 0:04:18]} Be7 {[%emt 0:02:11]} 25. Rc1 {[%emt 0:04:13]} Red8 {[%emt 0:04:00]} 26. Rxd8 {[%emt 0:01:48]} Rxd8 {[%emt 0:00:43]} 27. c4 {[%emt 0:00:06]} bxc4 {[%emt 0:00:46]} 28. b4 {[%emt 0:02:09]} h4 {[%emt 0:19:14]} 29. Nd2 {[%emt 0:05:14]} Rd7 {[%emt 0:03:15]} 30. Nxc4 {[%emt 0:00:39]} Nxc4 {[%emt 0:00:26]} 31. Bxc4 {[%emt 0:00:02]} Bxc4+ {[%emt 0:00:14]} 32. Rxc4 {[%emt 0:00:01]} Rd3 {[%emt 0:01:08]} 33. Bc1 {[%emt 0:02:12]} Rd6 {[%emt 0:02:43]} 34. Ke2 {[%emt 0:00:10]} Bd8 {[%emt 0:02:47]} 35. Be3 {[%emt 0:02:03]} a6 {[%emt 0:00:37]} 36. a4 {[%emt 0:00:38]} f6 {[%emt 0:02:16]} 37. f3 {[%emt 0:00:17]} g5 {[%emt 0:00:08]} 38. a5 {[%emt 0:00:35]} Kf7 {[%emt 0:01:00]} 39. Rc3 {[%emt 0:02:10]} Ke8 {[%emt 0:04:46]} 40. Rc4 {[%emt 0:00:56]} Kd7 {[%emt 0:00:28]} 41. Bf2 {[%emt 0:31:02]} Re6 {[%emt 0:30:41]} 42. Kd3 {[%emt 0:01:29]} Rd6+ {[%emt 0:00:18]} 43. Kc2 {[%emt 0:00:09]} Kc8 {[%emt 0:02:37]} 44. Rc3 {[%emt 0:02:26]} Kb7 {[%emt 0:00:42]} 45. Bc5 {[%emt 0:01:22]} Rd7 {[%emt 0:00:26]} 46. Rd3 {[%emt 0:02:40]} Kc8 {[%emt 0:00:33]} 47. Rxd7 {[%emt 0:00:20]} Kxd7 {[%emt 0:00:06]} 48. Kc3 {[%emt 0:00:03]} Be7 {[%emt 0:00:34]} 49. Bf2 {[%emt 0:00:03]} Bd6 {[%emt 0:00:26]} 50. Kc4 {[%emt 0:00:06]} Kc7 {[%emt 0:00:57]} 51. g3 {[%emt 0:00:14]} hxg3 {[%emt 0:00:13]} 52. Bxg3 {[%emt 0:00:01]} Kd7 {[%emt 0:00:09]} 53. h4 {[%emt 0:00:21]} gxh4 {[%emt 0:00:05]} 54. Bxh4 {[%emt 0:00:01]} Ke6 {[%emt 0:00:25]} 55. Bf2 {[%emt 0:00:14]} Kd7 {[%emt 0:00:16]} 56. Be1 {[%emt 0:00:23]} Bf8 {[%emt 0:01:02]} 57. Bh4 Ke6 {[%emt 0:00:24]} 58. Bg3 {[%emt 0:01:14]} Bd6 {[%emt 0:00:08]} 59. Bh2 {[%emt 0:00:18]} Kd7 {[%emt 0:00:07]} 60. Bg1 {[%emt 0:00:40]} Kc7 {[%emt 0:00:27]} 61. Bc5 {[%emt 0:00:31]} Kd7 {[%emt 0:00:20]} 62. Bb6 {[%emt 0:00:39]} Bf8 {[%emt 0:00:31]} 63. Bf2 {[%emt 0:00:10]} Bd6 {[%emt 0:00:06]} 64. Be1 {[%emt 0:00:10]} Bf8 {[%emt 0:00:09]} 65. Bg3 {[%emt 0:00:25]} Bd6 {[%emt 0:00:07]} 66. Bh2 {[%emt 0:00:05]} Kc7 {[%emt 0:00:18]} 67. Bg1 {[%emt 0:00:41]} Kd7 {[%emt 0:00:08]} 68. Be3 {[%emt 0:00:03]} Ke6 {[%emt 0:00:16]} 69. Bh6 {[%emt 0:00:27]} Kf7 {[%emt 0:00:19]} 70. Be3 {[%emt 0:00:05]} Ke6 {[%emt 0:00:05]} 1/2-1/2

[Event "EYTCC U12 Open 2019"]
[Site "Pardubice"]
[Date "2019.07.12"]
[Round "2.19"]
[White "Gregoric, Andraz"]
[Black "Portakalci, Yusuf"]
[Result "1/2-1/2"]
[ECO "C06"]
[WhiteElo "1911"]
[BlackElo "1764"]
[Annotator "NA"]
[PlyCount "83"]
[EventDate "2019.07.11"]
[EventType "swiss"]
[EventCountry "CZE"]
[SourceTitle "playchess.com"]
[Source "ChessBase"]
[SourceQuality "1"]
[WhiteTeam "Slovenia"]
[BlackTeam "Turkey"]
[WhiteTeamCountry "SLO"]
[BlackTeamCountry "TUR"]
[TimeControl "40/5400+30:1800+30"]

1. e4 {[%emt 0:00:00]} e6 {[%emt 0:00:00]} 2. d4 {[%emt 0:00:00]} d5 {[%emt 0:00:00]} 3. Nd2 {[%emt 0:00:00]} Nf6 {[%emt 0:00:12]} 4. e5 {[%emt 0:00:00]} Nfd7 {[%emt 0:00:05]} 5. Bd3 {[%emt 0:00:01]} c5 {[%emt 0:00:09]} 6. c3 {[%emt 0:00:04]} Nc6 {[%emt 0:00:04]} 7. Ne2 {[%emt 0:00:06]} cxd4 {[%emt 0:00:26]} 8. cxd4 {[%emt 0:00:09]} f6 {[%emt 0:00:33]} 9. exf6 {[%emt 0:00:29]} Nxf6 {[%emt 0:00:08]} 10. Nf3 {[%emt 0:03:33]} Bd6 {[%emt 0:02:19]} 11. Bf4 {[%emt 0:00:59]} O-O {[%emt 0:03:21]} 12. O-O {[%emt 0:01:44]} Qc7 {[%emt 0:11:51]} 13. Bxd6 {[%emt 0:03:23]} Qxd6 {[%emt 0:01:33]} 14. Ng3 {[%emt 0:00:26]} Bd7 {[%emt 0:07:45]} 15. Re1 {[%emt 0:04:15]} Rae8 {[%emt 0:05:28]} 16. Qd2 {[%emt 0:11:35]} Qb4 {[%emt 0:09:58]} 17. Rad1 {[%emt 0:01:06]} Qd6 {[%emt 0:13:36]} 18. Bb1 {[%emt 0:08:15]} Qc7 {[%emt 0:13:07]} 19. h3 {[%emt 0:09:08]} e5 {[%emt 0:10:32]} 20. dxe5 {[%emt 0:02:55]} Nxe5 {[%emt 0:01:40]} 21. Nxe5 {[%emt 0:00:31]} Rxe5 {[%emt 0:00:12]} 22. Rxe5 {[%emt 0:00:21]} Qxe5 {[%emt 0:00:05]} 23. Re1 {[%emt 0:00:27]} Qd6 {[%emt 0:02:26]} 24. a3 {[%emt 0:30:59]} Re8 {[%emt 0:02:57]} 25. Rxe8+ {[%emt 0:00:07]} Nxe8 {[%emt 0:01:49]} 26. Qg5 {[%emt 0:01:20]} Nf6 {[%emt 0:01:15]} 27. Nh5 {[%emt 0:05:27]} Nxh5 {[%emt 0:01:42]} 28. Qxh5 {[%emt 0:00:07]} g6 {[%emt 0:01:39]} 29. Qg5 {[%emt 0:00:08]} Bc6 {[%emt 0:00:59]} 30. Ba2 {[%emt 0:00:59]} Kg7 {[%emt 0:00:16]} 31. Qd2 {[%emt 0:04:57]} Qe5 {[%emt 0:01:43]} 32. Bb1 {[%emt 0:00:59]} a6 {[%emt 0:01:30]} 33. Bd3 {[%emt 0:01:09]} d4 {[%emt 0:01:16]} 34. f3 {[%emt 0:02:14]} g5 {[%emt 0:01:47]} 35. Kf2 {[%emt 0:02:31]} h6 {[%emt 0:00:44]} 36. b4 {[%emt 0:01:50]} Kf6 {[%emt 0:01:03]} 37. Qc1 {[%emt 0:00:37]} Qd6 {[%emt 0:02:07]} 38. h4 {[%emt 0:00:39]} Qe5 {[%emt 0:01:17]} 39. hxg5+ {[%emt 0:00:54]} Qxg5 {[%emt 0:01:02]} 40. Qxg5+ {[%emt 0:01:43]} hxg5 {[%emt 0:00:25]} 41. g3 {[%emt 0:30:45]} Ke5 {[%emt 0:30:26]} 42. Ke2 {[%emt 0:00:09]} 1/2-1/2

[Event "EYTCC U12 Open 2019"]
[Site "Pardubice"]
[Date "2019.07.12"]
[Round "2.20"]
[White "Durak, Can"]
[Black "Olenik Campa, Rudi"]
[Result "1-0"]
[ECO "E61"]
[WhiteElo "1753"]
[BlackElo "1854"]
[Annotator "NA"]
[PlyCount "141"]
[EventDate "2019.07.11"]
[EventType "swiss"]
[EventCountry "CZE"]
[SourceTitle "playchess.com"]
[Source "ChessBase"]
[SourceQuality "1"]
[WhiteTeam "Turkey"]
[BlackTeam "Slovenia"]
[WhiteTeamCountry "TUR"]
[BlackTeamCountry "SLO"]
[TimeControl "40/5400+30:1800+30"]

1. d4 {[%emt 0:00:00]} Nf6 {[%emt 0:00:00]} 2. c4 {[%emt 0:00:33]} g6 {[%emt 0:00:00]} 3. Nc3 {[%emt 0:01:29]} Bg7 {[%emt 0:00:00]} 4. Nf3 {[%emt 0:00:34]} O-O {[%emt 0:00:10]} 5. Bg5 {[%emt 0:00:36]} d6 {[%emt 0:00:32]} 6. e3 {[%emt 0:00:48]} h6 {[%emt 0:00:48]} 7. Bh4 {[%emt 0:00:48]} Nc6 {[%emt 0:01:26]} 8. Be2 {[%emt 0:01:10]} g5 {[%emt 0:05:12]} 9. Bg3 {[%emt 0:00:44]} Nh5 {[%emt 0:01:25]} 10. Qc2 {[%emt 0:01:53]} f5 {[%emt 0:01:41]} 11. Nd2 {[%emt 0:02:02]} Nf6 {[%emt 0:02:46]} 12. d5 {[%emt 0:03:01]} Nb4 {[%emt 0:03:12]} 13. Qb3 {[%emt 0:01:31]} Na6 {[%emt 0:00:06]} 14. O-O {[%emt 0:04:35]} Nc5 {[%emt 0:03:34]} 15. Qc2 {[%emt 0:01:12]} e5 {[%emt 0:00:40]} 16. f3 {[%emt 0:04:20]} Qe7 {[%emt 0:04:02]} 17. b4 {[%emt 0:05:15]} Na6 {[%emt 0:00:13]} 18. Rab1 {[%emt 0:02:13]} Nh5 {[%emt 0:02:07]} 19. Bf2 {[%emt 0:03:00]} f4 {[%emt 0:00:15]} 20. e4 {[%emt 0:02:56]} Nf6 {[%emt 0:00:05]} 21. c5 {[%emt 0:03:05]} h5 {[%emt 0:02:58]} 22. Nb5 {[%emt 0:05:07]} g4 {[%emt 0:01:34]} 23. cxd6 {[%emt 0:03:48]} cxd6 {[%emt 0:01:31]} 24. Nc4 {[%emt 0:00:29]} Ne8 {[%emt 0:00:09]} 25. Bxa7 {[%emt 0:06:06]} Qd8 {[%emt 0:22:46]} 26. Bf2 {[%emt 0:03:37]} Rf7 {[%emt 0:08:53]} 27. Qd1 {[%emt 0:06:27]} Bf8 {[%emt 0:05:34]} 28. fxg4 {[%emt 0:04:16]} Rg7 {[%emt 0:02:18]} 29. Nb6 {[%emt 0:02:37]} Bxg4 {[%emt 0:02:57]} 30. Bxg4 {[%emt 0:01:50]} hxg4 {[%emt 0:00:17]} 31. Nxa8 {[%emt 0:01:06]} Qxa8 {[%emt 0:01:16]} 32. Rb3 {[%emt 0:03:31]} Nf6 {[%emt 0:00:09]} 33. Qe1 {[%emt 0:02:16]} Qe8 {[%emt 0:00:14]} 34. a4 {[%emt 0:02:41]} Qg6 {[%emt 0:00:30]} 35. Nc3 {[%emt 0:04:06]} Be7 {[%emt 0:04:00]} 36. Bh4 {[%emt 0:03:32]} Rh7 {[%emt 0:08:04]} 37. Bxf6 {[%emt 0:01:18]} Bxf6 {[%emt 0:00:14]} 38. Nb5 {[%emt 0:00:55]} Bd8 {[%emt 0:01:15]} 39. a5 {[%emt 0:01:21]} Qh5 {[%emt 0:06:48]} 40. h3 {[%emt 0:01:04]} Qg6 {[%emt 0:01:55]} 41. hxg4 {[%emt 0:32:41]} Qxg4 {[%emt 0:30:20]} 42. Qd1 {[%emt 0:01:41]} Qg6 {[%emt 0:00:06]} 43. Qf3 {[%emt 0:01:54]} Bh4 {[%emt 0:01:37]} 44. Rc1 {[%emt 0:02:52]} Bg3 {[%emt 0:00:49]} 45. Rc8+ {[%emt 0:00:42]} Kf7 {[%emt 0:02:49]} 46. Kf1 {[%emt 0:01:39]} Rh1+ {[%emt 0:00:23]} 47. Ke2 {[%emt 0:00:06]} Re1+ {[%emt 0:01:50]} 48. Kd2 {[%emt 0:00:14]} Ra1 {[%emt 0:01:13]} 49. Nxd6+ {[%emt 0:02:21]} Ke7 {[%emt 0:00:00]} 50. Nf5+ {[%emt 0:00:00]} Kd7 {[%emt 0:00:00]} 51. Rc1 {[%emt 0:00:00]} Ra2+ {[%emt 0:00:00]} 52. Rc2 {[%emt 0:00:00]} Be1+ {[%emt 0:00:00]} 53. Kc1 {[%emt 0:00:00]} Rxc2+ {[%emt 0:00:00]} 54. Kxc2 {[%emt 0:00:00]} Bxb4 {[%emt 0:00:00]} 55. Qe2 {[%emt 0:00:00]} Kd8 {[%emt 0:00:00]} 56. Rh3 {[%emt 0:00:00]} Qg8 {[%emt 0:00:00]} 57. Kb1 {[%emt 0:00:00]} Qe8 {[%emt 0:00:00]} 58. Qh5 {[%emt 0:00:00]} Qb5 {[%emt 0:00:00]} 59. Qh8+ {[%emt 0:00:00]} Bf8+ {[%emt 0:00:00]} 60. Kc2 {[%emt 0:00:00]} Qc4+ {[%emt 0:00:00]} 61. Kd2 {[%emt 0:00:00]} Qa2+ {[%emt 0:00:00]} 62. Ke1 {[%emt 0:00:00]} Qxa5+ {[%emt 0:00:00]} 63. Kf1 {[%emt 0:00:00]} Qc5 {[%emt 0:00:00]} 64. Qf6+ {[%emt 0:00:00]} Kc8 {[%emt 0:00:00]} 65. Rh8 {[%emt 0:00:00]} Qc1+ {[%emt 0:00:00]} 66. Kf2 {[%emt 0:00:00]} Qd2+ {[%emt 0:00:00]} 67. Kg1 {[%emt 0:00:00]} Qd1+ {[%emt 0:00:00]} 68. Kh2 {[%emt 0:00:00]} Kb8 {[%emt 0:00:00]} 69. Qxf8+ {[%emt 0:00:00]} Ka7 {[%emt 0:00:00]} 70. Qa8+ {[%emt 0:00:00]} Kb6 {[%emt 0:00:00]} 71. Rh6+ {[%emt 0:00:00]} 1-0

[Event "EYTCC U12 Open 2019"]
[Site "Pardubice"]
[Date "2019.07.12"]
[Round "2.21"]
[White "Smolik, Jachym"]
[Black "Bakiev, Diyor"]
[Result "1-0"]
[ECO "B03"]
[WhiteElo "1757"]
[BlackElo "2121"]
[Annotator "NA"]
[PlyCount "113"]
[EventDate "2019.07.11"]
[EventType "swiss"]
[EventCountry "CZE"]
[SourceTitle "playchess.com"]
[Source "ChessBase"]
[SourceQuality "1"]
[WhiteTeam "Czech Republic"]
[BlackTeam "Germany"]
[WhiteTeamCountry "CZE"]
[BlackTeamCountry "GER"]
[TimeControl "40/5400+30:1800+30"]

1. e4 {[%emt 0:00:00]} Nf6 {[%emt 0:00:00]} 2. e5 {[%emt 0:00:13]} Nd5 {[%emt 0:00:00]} 3. c4 {[%emt 0:02:29]} Nb6 {[%emt 0:00:00]} 4. d4 {[%emt 0:01:25]} d6 {[%emt 0:00:00]} 5. exd6 {[%emt 0:01:53]} exd6 {[%emt 0:00:01]} 6. Bd3 {[%emt 0:04:19]} Nc6 {[%emt 0:00:56]} 7. Be3 {[%emt 0:03:38]} Be7 {[%emt 0:00:55]} 8. h3 {[%emt 0:04:17]} Nb4 {[%emt 0:04:10]} 9. Nf3 {[%emt 0:07:26]} Nxd3+ {[%emt 0:01:44]} 10. Qxd3 {[%emt 0:00:03]} O-O {[%emt 0:01:10]} 11. O-O {[%emt 0:01:46]} Bf6 {[%emt 0:04:46]} 12. Nc3 {[%emt 0:01:58]} g6 {[%emt 0:08:28]} 13. Ne4 {[%emt 0:06:41]} Bg7 {[%emt 0:14:42]} 14. Ng3 {[%emt 0:01:10]} d5 {[%emt 0:05:40]} 15. c5 {[%emt 0:01:51]} Nc4 {[%emt 0:00:24]} 16. Bc1 {[%emt 0:02:24]} b6 {[%emt 0:04:35]} 17. b3 {[%emt 0:01:44]} Na5 {[%emt 0:00:05]} 18. Bd2 {[%emt 0:01:08]} Nc6 {[%emt 0:01:19]} 19. Rac1 {[%emt 0:00:53]} Ne7 {[%emt 0:03:45]} 20. Bf4 {[%emt 0:03:07]} a5 {[%emt 0:18:14]} 21. Rfe1 {[%emt 0:03:12]} bxc5 {[%emt 0:05:56]} 22. Rxc5 {[%emt 0:01:24]} c6 {[%emt 0:00:14]} 23. Qe3 {[%emt 0:10:54]} Ra7 {[%emt 0:01:24]} 24. Ne5 {[%emt 0:04:43]} Bd7 {[%emt 0:03:23]} 25. Qc3 {[%emt 0:04:26]} f6 {[%emt 0:03:09]} 26. Nxd7 {[%emt 0:00:35]} Qxd7 {[%emt 0:00:46]} 27. Rxa5 {[%emt 0:01:04]} Rfa8 28. Rxa7 {[%emt 0:00:18]} Rxa7 {[%emt 0:01:54]} 29. a4 {[%emt 0:00:32]} g5 {[%emt 0:04:39]} 30. Bc1 {[%emt 0:00:23]} h6 {[%emt 0:01:13]} 31. Ba3 {[%emt 0:01:03]} Ng6 {[%emt 0:00:50]} 32. Rc1 {[%emt 0:01:09]} Rc7 {[%emt 0:00:42]} 33. Bc5 {[%emt 0:03:01]} f5 {[%emt 0:03:16]} 34. Qc2 {[%emt 0:01:18]} Nh4 {[%emt 0:00:29]} 35. Re1 {[%emt 0:02:33]} Qf7 {[%emt 0:05:40]} 36. a5 {[%emt 0:03:08]} f4 {[%emt 0:00:33]} 37. Nf1 {[%emt 0:00:22]} f3 {[%emt 0:00:34]} 38. g3 {[%emt 0:02:29]} Ng2 {[%emt 0:00:33]} 39. Ra1 {[%emt 0:01:12]} Qe6 {[%emt 0:01:25]} 40. Qd3 {[%emt 0:03:29]} Ne1 {[%emt 0:01:28]} 41. Qd1 {[%emt 0:37:12]} Qxh3 {[%emt 0:01:44]} 42. Ne3 {[%emt 0:00:00]} Ng2 {[%emt 0:09:19]} 43. Qxf3 {[%emt 0:00:00]} Nxe3 {[%emt 0:04:21]} 44. Qxe3 {[%emt 0:00:00]} Rc8 {[%emt 0:01:52]} 45. a6 {[%emt 0:00:00]} Ra8 {[%emt 0:01:12]} 46. a7 {[%emt 0:00:00]} Qd7 {[%emt 0:00:28]} 47. Qc3 {[%emt 0:00:00]} Bf8 {[%emt 0:01:19]} 48. Bxf8 {[%emt 0:00:00]} Kxf8 {[%emt 0:00:14]} 49. Qb4+ {[%emt 0:00:00]} Qe7 {[%emt 0:00:22]} 50. Qb8+ {[%emt 0:00:00]} Qe8 {[%emt 0:00:06]} 51. Qd6+ {[%emt 0:00:00]} Kg7 {[%emt 0:00:11]} 52. b4 {[%emt 0:00:00]} Qc8 {[%emt 0:02:42]} 53. Qe7+ {[%emt 0:00:00]} Kg6 {[%emt 0:01:23]} 54. Re1 {[%emt 0:00:00]} Qa6 {[%emt 0:01:20]} 55. Re6+ {[%emt 0:00:00]} Kh5 {[%emt 0:00:05]} 56. Qf7+ {[%emt 0:00:00]} Kg4 {[%emt 0:00:09]} 57. Kg2 {[%emt 0:00:00]} 1-0

[Event "EYTCC U12 Open 2019"]
[Site "Pardubice"]
[Date "2019.07.12"]
[Round "2.22"]
[White "Costa, Leonardo"]
[Black "Fizer, Marek"]
[Result "0-1"]
[ECO "B40"]
[WhiteElo "2002"]
[BlackElo "1624"]
[Annotator "NA"]
[PlyCount "74"]
[EventDate "2019.07.11"]
[EventType "swiss"]
[EventCountry "CZE"]
[SourceTitle "playchess.com"]
[Source "ChessBase"]
[SourceQuality "1"]
[WhiteTeam "Germany"]
[BlackTeam "Czech Republic"]
[WhiteTeamCountry "GER"]
[BlackTeamCountry "CZE"]
[TimeControl "40/5400+30:1800+30"]

1. e4 {[%emt 0:00:00]} c5 {[%emt 0:00:00]} 2. Nf3 {[%emt 0:00:00]} e6 {[%emt 0:00:00]} 3. d4 {[%emt 0:00:00]} cxd4 {[%emt 0:00:00]} 4. Nxd4 {[%emt 0:00:00]} Qb6 {[%emt 0:00:07]} 5. Nb3 {[%emt 0:04:11]} Qc7 {[%emt 0:01:16]} 6. Nc3 {[%emt 0:04:57]} a6 {[%emt 0:01:53]} 7. Bd3 {[%emt 0:03:21]} Nf6 {[%emt 0:01:15]} 8. O-O {[%emt 0:01:37]} Be7 {[%emt 0:03:08]} 9. Be3 {[%emt 0:02:36]} b5 {[%emt 0:01:24]} 10. a3 {[%emt 0:03:27]} Bb7 {[%emt 0:02:28]} 11. f4 {[%emt 0:17:44]} d6 {[%emt 0:03:13]} 12. Kh1 {[%emt 0:02:31]} h5 {[%emt 0:03:19]} 13. Qf3 {[%emt 0:04:44]} Nbd7 {[%emt 0:02:37]} 14. Rae1 {[%emt 0:04:37]} e5 {[%emt 0:24:35]} 15. Qg3 {[%emt 0:08:18]} h4 {[%emt 0:03:50]} 16. Qh3 Nh5 {[%emt 0:13:36]} 17. Nd5 {[%emt 0:07:02]} Bxd5 {[%emt 0:01:22]} 18. exd5 {[%emt 0:00:04]} O-O-O {[%emt 0:01:13]} 19. Kg1 {[%emt 0:00:55]} Bf6 {[%emt 0:03:56]} 20. c4 {[%emt 0:03:58]} e4 {[%emt 0:08:00]} 21. cxb5 {[%emt 0:01:02]} Bxb2 {[%emt 0:04:46]} 22. b6 {[%emt 0:03:28]} Qc3 {[%emt 0:01:41]} 23. Bxa6+ {[%emt 0:00:20]} Kb8 {[%emt 0:00:14]} 24. Nd2 {[%emt 0:09:56]} Nc5 {[%emt 0:00:45]} 25. Be2 {[%emt 0:01:05]} Ng3 {[%emt 0:01:24]} 26. Nc4 {[%emt 0:02:20]} Nxf1 {[%emt 0:01:08]} 27. Rxf1 {[%emt 0:00:17]} Nd3 {[%emt 0:02:27]} 28. Nxb2 {[%emt 0:01:11]} Qxb2 {[%emt 0:00:20]} 29. Bxd3 {[%emt 0:03:03]} exd3 {[%emt 0:00:16]} 30. Qf5 {[%emt 0:01:06]} Qe2 {[%emt 0:01:56]} 31. Bf2 {[%emt 0:00:44]} Rhe8 {[%emt 0:07:10]} 32. Qxf7 {[%emt 0:04:54]} Re7 {[%emt 0:00:23]} 33. Qg6 {[%emt 0:00:31]} d2 {[%emt 0:02:35]} 34. Qb1 {[%emt 0:01:10]} Rde8 {[%emt 0:02:11]} 35. Bxh4 {[%emt 0:02:46]} Re3 {[%emt 0:01:15]} 36. Qb4 {[%emt 0:01:40]} Qxf1+ {[%emt 0:00:23]} 37. Kxf1 {[%emt 0:00:07]} d1=Q+ {[%emt 0:00:08]} 0-1

[Event "EYTCC U12 Open 2019"]
[Site "Pardubice"]
[Date "2019.07.12"]
[Round "2.23"]
[White "Juhanak, Daniel"]
[Black "Deuer, Marius"]
[Result "0-1"]
[ECO "C55"]
[WhiteElo "1510"]
[BlackElo "1881"]
[Annotator "NA"]
[PlyCount "60"]
[EventDate "2019.07.11"]
[EventType "swiss"]
[EventCountry "CZE"]
[SourceTitle "playchess.com"]
[Source "ChessBase"]
[SourceQuality "1"]
[WhiteTeam "Czech Republic"]
[BlackTeam "Germany"]
[WhiteTeamCountry "CZE"]
[BlackTeamCountry "GER"]
[TimeControl "40/5400+30:1800+30"]

1. e4 {[%emt 0:00:00]} e5 {[%emt 0:00:00]} 2. Nf3 {[%emt 0:00:14]} Nc6 {[%emt 0:00:00]} 3. Bc4 {[%emt 0:01:12]} Nf6 {[%emt 0:00:00]} 4. d3 {[%emt 0:03:23]} Be7 {[%emt 0:00:16]} 5. O-O {[%emt 0:02:04]} O-O {[%emt 0:00:12]} 6. c3 {[%emt 0:02:39]} d5 {[%emt 0:00:38]} 7. exd5 {[%emt 0:04:05]} Nxd5 {[%emt 0:00:14]} 8. Re1 {[%emt 0:02:20]} Bg4 {[%emt 0:00:08]} 9. Bb3 {[%emt 0:04:47]} f6 {[%emt 0:07:17]} 10. Nbd2 {[%emt 0:09:43]} Kh8 {[%emt 0:04:49]} 11. Nf1 {[%emt 0:05:01]} Bh5 {[%emt 0:04:50]} 12. Ng3 {[%emt 0:07:46]} Bg6 {[%emt 0:06:56]} 13. d4 {[%emt 0:11:36]} exd4 {[%emt 0:08:28]} 14. Nxd4 {[%emt 0:00:44]} Nxd4 {[%emt 0:02:11]} 15. Qxd4 {[%emt 0:00:37]} c6 {[%emt 0:05:04]} 16. Ne4 {[%emt 0:08:50]} b6 {[%emt 0:05:01]} 17. a4 {[%emt 0:11:08]} f5 {[%emt 0:04:47]} 18. Nd2 {[%emt 0:02:54]} Bc5 {[%emt 0:07:29]} 19. Qc4 {[%emt 0:03:27]} Re8 {[%emt 0:05:53]} 20. Rxe8+ {[%emt 0:01:25]} Qxe8 {[%emt 0:00:48]} 21. Qf1 {[%emt 0:06:59]} Bh5 {[%emt 0:03:05]} 22. Bd1 {[%emt 0:03:17]} Bxd1 {[%emt 0:08:30]} 23. Qxd1 {[%emt 0:00:04]} Nf4 {[%emt 0:00:45]} 24. Nf3 {[%emt 0:01:37]} Rd8 {[%emt 0:02:19]} 25. Qb3 {[%emt 0:02:38]} Nd3 {[%emt 0:02:50]} 26. Bg5 {[%emt 0:03:38]} Qe2 {[%emt 0:03:18]} 27. Qd1 {[%emt 0:00:41]} Qxf2+ {[%emt 0:00:53]} 28. Kh1 {[%emt 0:00:20]} Qxb2 {[%emt 0:00:48]} 29. Qb1 {[%emt 0:00:43]} Nf2+ {[%emt 0:00:38]} 30. Kg1 {[%emt 0:00:35]} Rd1+ {[%emt 0:00:07]} 0-1

[Event "EYTCC U12 Open 2019"]
[Site "Pardubice"]
[Date "2019.07.12"]
[Round "2.24"]
[White "Hagner, Bennet"]
[Black "Buchta, Bartolomej"]
[Result "1-0"]
[ECO "B90"]
[WhiteElo "1831"]
[BlackElo "1585"]
[Annotator "NA"]
[PlyCount "85"]
[EventDate "2019.07.11"]
[EventType "swiss"]
[EventCountry "CZE"]
[SourceTitle "playchess.com"]
[Source "ChessBase"]
[SourceQuality "1"]
[WhiteTeam "Germany"]
[BlackTeam "Czech Republic"]
[WhiteTeamCountry "GER"]
[BlackTeamCountry "CZE"]
[TimeControl "40/5400+30:1800+30"]

1. e4 {[%emt 0:00:00]} c5 {[%emt 0:00:00]} 2. Nf3 {[%emt 0:00:00]} d6 {[%emt 0:00:00]} 3. d4 {[%emt 0:00:00]} cxd4 {[%emt 0:00:00]} 4. Nxd4 {[%emt 0:00:00]} Nf6 {[%emt 0:00:00]} 5. Nc3 {[%emt 0:00:07]} a6 {[%emt 0:00:03]} 6. Be3 {[%emt 0:00:12]} e6 {[%emt 0:02:18]} 7. Be2 {[%emt 0:00:12]} Qc7 {[%emt 0:00:42]} 8. Qd2 {[%emt 0:02:39]} b5 {[%emt 0:00:26]} 9. f3 {[%emt 0:02:40]} Nbd7 {[%emt 0:01:17]} 10. a4 {[%emt 0:03:20]} b4 {[%emt 0:01:16]} 11. Na2 {[%emt 0:00:50]} d5 {[%emt 0:00:59]} 12. exd5 {[%emt 0:09:28]} Nxd5 {[%emt 0:00:13]} 13. c4 {[%emt 0:07:56]} Nxe3 {[%emt 0:04:42]} 14. Qxe3 {[%emt 0:00:02]} Bc5 {[%emt 0:00:29]} 15. f4 {[%emt 0:09:47]} O-O {[%emt 0:01:25]} 16. Bf3 {[%emt 0:01:15]} Bb7 {[%emt 0:01:00]} 17. Bxb7 {[%emt 0:01:24]} Qxb7 {[%emt 0:00:07]} 18. Qf3 {[%emt 0:05:00]} Qc7 {[%emt 0:01:24]} 19. O-O-O {[%emt 0:10:27]} Bd6 {[%emt 0:02:22]} 20. Kb1 {[%emt 0:02:47]} Nb6 {[%emt 0:04:49]} 21. b3 {[%emt 0:05:18]} Bxf4 {[%emt 0:01:12]} 22. Nxb4 {[%emt 0:04:04]} Rfc8 {[%emt 0:11:20]} 23. Nbc6 {[%emt 0:13:19]} Kh8 {[%emt 0:06:14]} 24. g3 {[%emt 0:03:34]} Bg5 {[%emt 0:01:25]} 25. Rhe1 {[%emt 0:02:58]} Bf6 {[%emt 0:05:23]} 26. Qf4 {[%emt 0:01:05]} Qb7 {[%emt 0:02:34]} 27. Na5 {[%emt 0:01:07]} Qe7 {[%emt 0:00:35]} 28. Ka2 {[%emt 0:02:22]} Qc5 {[%emt 0:03:14]} 29. Nb7 {[%emt 0:01:04]} Qb4 {[%emt 0:02:24]} 30. Nd6 {[%emt 0:02:19]} Rf8 {[%emt 0:01:04]} 31. Nc6 {[%emt 0:01:43]} Qc3 {[%emt 0:01:42]} 32. Re2 {[%emt 0:01:55]} g5 {[%emt 0:13:26]} 33. Qf2 {[%emt 0:01:02]} Nxa4 {[%emt 0:04:47]} 34. Ne4 {[%emt 0:02:00]} Bg7 {[%emt 0:02:48]} 35. Rc2 {[%emt 0:01:48]} f5 {[%emt 0:01:28]} 36. Nxc3 {[%emt 0:00:46]} Nxc3+ {[%emt 0:00:43]} 37. Rxc3 {[%emt 0:00:05]} Bxc3 {[%emt 0:00:05]} 38. Qe3 {[%emt 0:00:19]} Bf6 {[%emt 0:00:58]} 39. Rd6 {[%emt 0:01:25]} Rae8 {[%emt 0:00:49]} 40. Rxe6 {[%emt 0:00:42]} Rxe6 {[%emt 0:00:12]} 41. Qxe6 {[%emt 0:30:05]} f4 {[%emt 0:30:06]} 42. Ne5 {[%emt 0:02:16]} Bg7 {[%emt 0:01:52]} 43. Nf7+ {[%emt 0:00:13]} 1-0